{"text_format":"1","workbook":"xlsx","n_sheets":2,"sheets":["Caisse","Accueil"],"not_rendered":{"charts":0,"images":1,"macros":1,"external_links":0,"defined_names":1,"comments":0,"pivot_tables":0},"unopened":[],"bounds":{"document_bytes":16777216,"sheet_cells":100000,"rows_first":2000,"rows_last":500,"rows_between":2000,"halvings":0,"cell_chars":16384,"cell_head_chars":4096},"cells_cut":0,"cells_raw":0,"read":"whole","date_system":"1900"}

{"sheet":"Caisse","index":0,"n_rows":200,"n_cols":32,"rows_kept":200,"cut":false,"hidden":false,"merged":[]}
[null,null,null,null,null,null,null,null,"BOISSON","Prix","VIANDE","Prix","AUTRE","Prix",null,null,null,null,null,null,null,null,null,null,null,null,null,null,null,"Qté","Produits","Prix"]
[null,null,null,null,null,null,null,null,"essai1",1,"essai25",2,"essai 31",1]
[null,null,null,null,null,null,null,null,"essai2",1,"essai26",2,"essai 32",2]
[null,null,null,null,null,null,null,null,"essai3",1,"essai27",2,"essai 33",3]
[null,null,null,null,null,null,null,null,"essai4",1,"essai28",3,"essai 34",4]
[null,null,null,null,null,null,null,null,"essai5",1,"essai29",4,"essai 35",5]
[null,null,null,null,null,null,null,null,"essai6",1,"viandox",5,"essai 36",6]
[null,null,null,null,null,null,null,null,"essai7",1,"",null,""]
[null,null,null,null,null,null,null,null,"essai8",1,"",null,""]
[null,null,null,null,null,null,null,null,"essai9",1,"",null,""]
[null,null,null,null,null,null,null,null,"essai10",1,"",null,""]
[null,null,null,null,null,null,null,null,"essai11",1,"",null,""]
[null,null,null,null,null,null,null,null,"essai12",1,"",null,""]
[null,null,null,null,null,null,null,null,"essai13",1,"",null,""]
[null,null,null,null,null,null,null,null,"essai14",1,"",null,""]
[null,null,null,null,null,null,null,null,"essai15",1,"",null,""]
[null,null,null,null,null,null,null,null,"essai16",1,"",null,""]
[null,null,null,null,null,null,null,null,"essai17",1,"",null,""]
[null,null,null,null,null,null,null,null,"essai18",1]
[null,null,null,null,null,null,null,null,"essai19",1]
[null,null,null,null,null,null,null,null,"essai20",1]
[null,null,null,null,null,null,null,null,"essai21",1]
[null,null,null,null,null,null,null,null,"essai22",1]
[null,null,null,null,null,null,null,null,"essai23",2]
[null,null,null,null,null,null,null,null,"essai24",3]
[]
[]
[]
[]
[]
[]
[null,null,null,null,null,null,null,null,null,null,null,null,null,{"$f":"IF(M32>\"\",VLOOKUP(M32,#REF!,5,FALSE),\"\")","v":""}]
[null,null,null,null,null,null,null,null,null,null,"",null,"",{"$f":"IF(M33>\"\",VLOOKUP(M33,#REF!,5,FALSE),\"\")","v":""}]
[null,null,null,null,null,null,null,null,null,null,"",null,"",{"$f":"IF(M34>\"\",VLOOKUP(M34,#REF!,5,FALSE),\"\")","v":""}]
[null,null,null,null,null,null,null,null,null,null,"",null,"",{"$f":"IF(M35>\"\",VLOOKUP(M35,#REF!,5,FALSE),\"\")","v":""}]
[null,null,null,null,null,null,null,null,null,null,"",null,"",{"$f":"IF(M36>\"\",VLOOKUP(M36,#REF!,5,FALSE),\"\")","v":""}]
[null,null,null,null,null,null,null,null,null,null,"",null,"",{"$f":"IF(M37>\"\",VLOOKUP(M37,#REF!,5,FALSE),\"\")","v":""}]
[null,null,null,null,null,null,null,null,"",null,"",null,"",{"$f":"IF(M38>\"\",VLOOKUP(M38,#REF!,5,FALSE),\"\")","v":""}]
[null,null,null,null,null,null,null,null,"",null,"",null,"",{"$f":"IF(M39>\"\",VLOOKUP(M39,#REF!,5,FALSE),\"\")","v":""}]
[null,null,null,null,null,null,null,null,"",null,"",null,"",{"$f":"IF(M40>\"\",VLOOKUP(M40,#REF!,5,FALSE),\"\")","v":""}]
[null,null,null,null,null,null,null,null,"",null,"",null,"",{"$f":"IF(M41>\"\",VLOOKUP(M41,#REF!,5,FALSE),\"\")","v":""}]
[null,null,null,null,null,null,null,null,"",null,"",null,"",{"$f":"IF(M42>\"\",VLOOKUP(M42,#REF!,5,FALSE),\"\")","v":""}]
[null,null,null,null,null,null,null,null,"",null,"",null,"",{"$f":"IF(M43>\"\",VLOOKUP(M43,#REF!,5,FALSE),\"\")","v":""}]
[null,null,null,null,null,null,null,null,"",null,"",null,"",{"$f":"IF(M44>\"\",VLOOKUP(M44,#REF!,5,FALSE),\"\")","v":""}]
[null,null,null,null,null,null,null,null,"",null,"",null,"",{"$f":"IF(M45>\"\",VLOOKUP(M45,#REF!,5,FALSE),\"\")","v":""}]
[null,null,null,null,null,null,null,null,"",null,"",null,"",{"$f":"IF(M46>\"\",VLOOKUP(M46,#REF!,5,FALSE),\"\")","v":""}]
[null,null,null,null,null,null,null,null,"",null,"",null,"",{"$f":"IF(M47>\"\",VLOOKUP(M47,#REF!,5,FALSE),\"\")","v":""}]
[null,null,null,null,null,null,null,null,"",null,"",null,"",{"$f":"IF(M48>\"\",VLOOKUP(M48,#REF!,5,FALSE),\"\")","v":""}]
[null,null,null,null,null,null,null,null,"",null,"",null,"",{"$f":"IF(M49>\"\",VLOOKUP(M49,#REF!,5,FALSE),\"\")","v":""}]
[null,null,null,null,null,null,null,null,"",null,"",null,"",{"$f":"IF(M50>\"\",VLOOKUP(M50,#REF!,5,FALSE),\"\")","v":""}]
[null,null,null,null,null,null,null,null,"",null,"",null,"",{"$f":"IF(M51>\"\",VLOOKUP(M51,#REF!,5,FALSE),\"\")","v":""}]
[null,null,null,null,null,null,null,null,"",null,"",null,"",{"$f":"IF(M52>\"\",VLOOKUP(M52,#REF!,5,FALSE),\"\")","v":""}]
[null,null,null,null,null,null,null,null,"",null,"",null,"",{"$f":"IF(M53>\"\",VLOOKUP(M53,#REF!,5,FALSE),\"\")","v":""}]
[null,null,null,null,null,null,null,null,"",null,"",null,"",{"$f":"IF(M54>\"\",VLOOKUP(M54,#REF!,5,FALSE),\"\")","v":""}]
[null,null,null,null,null,null,null,null,"",null,"",null,"",{"$f":"IF(M55>\"\",VLOOKUP(M55,#REF!,5,FALSE),\"\")","v":""}]
[null,null,null,null,null,null,null,null,"",null,"",null,"",{"$f":"IF(M56>\"\",VLOOKUP(M56,#REF!,5,FALSE),\"\")","v":""}]
[null,null,null,null,null,null,null,null,"",null,"",null,"",{"$f":"IF(M57>\"\",VLOOKUP(M57,#REF!,5,FALSE),\"\")","v":""}]
[null,null,null,null,null,null,null,null,"",null,"",null,"",{"$f":"IF(M58>\"\",VLOOKUP(M58,#REF!,5,FALSE),\"\")","v":""}]
[null,null,null,null,null,null,null,null,"",null,"",null,"",{"$f":"IF(M59>\"\",VLOOKUP(M59,#REF!,5,FALSE),\"\")","v":""}]
[null,null,null,null,null,null,null,null,"",null,"",null,"",{"$f":"IF(M60>\"\",VLOOKUP(M60,#REF!,5,FALSE),\"\")","v":""}]
[null,null,null,null,null,null,null,null,"",null,"",null,"",{"$f":"IF(M61>\"\",VLOOKUP(M61,#REF!,5,FALSE),\"\")","v":""}]
[null,null,null,null,null,null,null,null,"",null,"",null,"",{"$f":"IF(M62>\"\",VLOOKUP(M62,#REF!,5,FALSE),\"\")","v":""}]
[null,null,null,null,null,null,null,null,"",null,"",null,"",{"$f":"IF(M63>\"\",VLOOKUP(M63,#REF!,5,FALSE),\"\")","v":""}]
[null,null,null,null,null,null,null,null,"",null,"",null,"",{"$f":"IF(M64>\"\",VLOOKUP(M64,#REF!,5,FALSE),\"\")","v":""}]
[null,null,null,null,null,null,null,null,"",null,"",null,"",{"$f":"IF(M65>\"\",VLOOKUP(M65,#REF!,5,FALSE),\"\")","v":""}]
[null,null,null,null,null,null,null,null,"",null,"",null,"",{"$f":"IF(M66>\"\",VLOOKUP(M66,#REF!,5,FALSE),\"\")","v":""}]
[null,null,null,null,null,null,null,null,"",null,"",null,"",{"$f":"IF(M67>\"\",VLOOKUP(M67,#REF!,5,FALSE),\"\")","v":""}]
[null,null,null,null,null,null,null,null,"",null,"",null,"",{"$f":"IF(M68>\"\",VLOOKUP(M68,#REF!,5,FALSE),\"\")","v":""}]
[null,null,null,null,null,null,null,null,"",null,"",null,"",{"$f":"IF(M69>\"\",VLOOKUP(M69,#REF!,5,FALSE),\"\")","v":""}]
[null,null,null,null,null,null,null,null,"",null,"",null,"",{"$f":"IF(M70>\"\",VLOOKUP(M70,#REF!,5,FALSE),\"\")","v":""}]
[null,null,null,null,null,null,null,null,"",null,"",null,"",{"$f":"IF(M71>\"\",VLOOKUP(M71,#REF!,5,FALSE),\"\")","v":""}]
[null,null,null,null,null,null,null,null,"",null,"",null,"",{"$f":"IF(M72>\"\",VLOOKUP(M72,#REF!,5,FALSE),\"\")","v":""}]
[null,null,null,null,null,null,null,null,"",null,"",null,"",{"$f":"IF(M73>\"\",VLOOKUP(M73,#REF!,5,FALSE),\"\")","v":""}]
[null,null,null,null,null,null,null,null,"",null,"",null,"",{"$f":"IF(M74>\"\",VLOOKUP(M74,#REF!,5,FALSE),\"\")","v":""}]
[null,null,null,null,null,null,null,null,"",null,"",null,"",{"$f":"IF(M75>\"\",VLOOKUP(M75,#REF!,5,FALSE),\"\")","v":""}]
[null,null,null,null,null,null,null,null,"",null,"",null,"",{"$f":"IF(M76>\"\",VLOOKUP(M76,#REF!,5,FALSE),\"\")","v":""}]
[null,null,null,null,null,null,null,null,"",null,"",null,"",{"$f":"IF(M77>\"\",VLOOKUP(M77,#REF!,5,FALSE),\"\")","v":""}]
[null,null,null,null,null,null,null,null,"",null,"",null,"",{"$f":"IF(M78>\"\",VLOOKUP(M78,#REF!,5,FALSE),\"\")","v":""}]
[null,null,null,null,null,null,null,null,"",null,"",null,"",{"$f":"IF(M79>\"\",VLOOKUP(M79,#REF!,5,FALSE),\"\")","v":""}]
[null,null,null,null,null,null,null,null,"",null,"",null,"",{"$f":"IF(M80>\"\",VLOOKUP(M80,#REF!,5,FALSE),\"\")","v":""}]
[null,null,null,null,null,null,null,null,"",null,"",null,"",{"$f":"IF(M81>\"\",VLOOKUP(M81,#REF!,5,FALSE),\"\")","v":""}]
[null,null,null,null,null,null,null,null,"",null,"",null,"",{"$f":"IF(M82>\"\",VLOOKUP(M82,#REF!,5,FALSE),\"\")","v":""}]
[null,null,null,null,null,null,null,null,"",null,"",null,"",{"$f":"IF(M83>\"\",VLOOKUP(M83,#REF!,5,FALSE),\"\")","v":""}]
[null,null,null,null,null,null,null,null,"",null,"",null,"",{"$f":"IF(M84>\"\",VLOOKUP(M84,#REF!,5,FALSE),\"\")","v":""}]
[null,null,null,null,null,null,null,null,"",null,"",null,"",{"$f":"IF(M85>\"\",VLOOKUP(M85,#REF!,5,FALSE),\"\")","v":""}]
[null,null,null,null,null,null,null,null,"",null,"",null,"",{"$f":"IF(M86>\"\",VLOOKUP(M86,#REF!,5,FALSE),\"\")","v":""}]
[null,null,null,null,null,null,null,null,"",null,"",null,"",{"$f":"IF(M87>\"\",VLOOKUP(M87,#REF!,5,FALSE),\"\")","v":""}]
[null,null,null,null,null,null,null,null,"",null,"",null,"",{"$f":"IF(M88>\"\",VLOOKUP(M88,#REF!,5,FALSE),\"\")","v":""}]
[null,null,null,null,null,null,null,null,"",null,"",null,"",{"$f":"IF(M89>\"\",VLOOKUP(M89,#REF!,5,FALSE),\"\")","v":""}]
[null,null,null,null,null,null,null,null,"",null,"",null,"",{"$f":"IF(M90>\"\",VLOOKUP(M90,#REF!,5,FALSE),\"\")","v":""}]
[null,null,null,null,null,null,null,null,"",null,"",null,"",{"$f":"IF(M91>\"\",VLOOKUP(M91,#REF!,5,FALSE),\"\")","v":""}]
[null,null,null,null,null,null,null,null,"",null,"",null,"",{"$f":"IF(M92>\"\",VLOOKUP(M92,#REF!,5,FALSE),\"\")","v":""}]
[null,null,null,null,null,null,null,null,"",null,"",null,"",{"$f":"IF(M93>\"\",VLOOKUP(M93,#REF!,5,FALSE),\"\")","v":""}]
[null,null,null,null,null,null,null,null,"",null,"",null,"",{"$f":"IF(M94>\"\",VLOOKUP(M94,#REF!,5,FALSE),\"\")","v":""}]
[null,null,null,null,null,null,null,null,"",null,"",null,"",{"$f":"IF(M95>\"\",VLOOKUP(M95,#REF!,5,FALSE),\"\")","v":""}]
[null,null,null,null,null,null,null,null,"",null,"",null,"",{"$f":"IF(M96>\"\",VLOOKUP(M96,#REF!,5,FALSE),\"\")","v":""}]
[null,null,null,null,null,null,null,null,"",null,"",null,"",{"$f":"IF(M97>\"\",VLOOKUP(M97,#REF!,5,FALSE),\"\")","v":""}]
[null,null,null,null,null,null,null,null,"",null,"",null,"",{"$f":"IF(M98>\"\",VLOOKUP(M98,#REF!,5,FALSE),\"\")","v":""}]
[null,null,null,null,null,null,null,null,"",null,"",null,"",{"$f":"IF(M99>\"\",VLOOKUP(M99,#REF!,5,FALSE),\"\")","v":""}]
[null,null,null,null,null,null,null,null,"",null,"",null,"",{"$f":"IF(M100>\"\",VLOOKUP(M100,#REF!,5,FALSE),\"\")","v":""}]
[null,null,null,null,null,null,null,null,"",null,"",null,"",{"$f":"IF(M101>\"\",VLOOKUP(M101,#REF!,5,FALSE),\"\")","v":""}]
[null,null,null,null,null,null,null,null,"",null,"",null,"",{"$f":"IF(M102>\"\",VLOOKUP(M102,#REF!,5,FALSE),\"\")","v":""}]
[null,null,null,null,null,null,null,null,"",null,"",null,"",{"$f":"IF(M103>\"\",VLOOKUP(M103,#REF!,5,FALSE),\"\")","v":""}]
[null,null,null,null,null,null,null,null,"",null,"",null,"",{"$f":"IF(M104>\"\",VLOOKUP(M104,#REF!,5,FALSE),\"\")","v":""}]
[null,null,null,null,null,null,null,null,"",null,"",null,"",{"$f":"IF(M105>\"\",VLOOKUP(M105,#REF!,5,FALSE),\"\")","v":""}]
[null,null,null,null,null,null,null,null,"",null,"",null,"",{"$f":"IF(M106>\"\",VLOOKUP(M106,#REF!,5,FALSE),\"\")","v":""}]
[null,null,null,null,null,null,null,null,"",null,"",null,"",{"$f":"IF(M107>\"\",VLOOKUP(M107,#REF!,5,FALSE),\"\")","v":""}]
[null,null,null,null,null,null,null,null,"",null,"",null,"",{"$f":"IF(M108>\"\",VLOOKUP(M108,#REF!,5,FALSE),\"\")","v":""}]
[null,null,null,null,null,null,null,null,"",null,"",null,"",{"$f":"IF(M109>\"\",VLOOKUP(M109,#REF!,5,FALSE),\"\")","v":""}]
[null,null,null,null,null,null,null,null,"",null,"",null,"",{"$f":"IF(M110>\"\",VLOOKUP(M110,#REF!,5,FALSE),\"\")","v":""}]
[null,null,null,null,null,null,null,null,"",null,"",null,"",{"$f":"IF(M111>\"\",VLOOKUP(M111,#REF!,5,FALSE),\"\")","v":""}]
[null,null,null,null,null,null,null,null,"",null,"",null,"",{"$f":"IF(M112>\"\",VLOOKUP(M112,#REF!,5,FALSE),\"\")","v":""}]
[null,null,null,null,null,null,null,null,"",null,"",null,"",{"$f":"IF(M113>\"\",VLOOKUP(M113,#REF!,5,FALSE),\"\")","v":""}]
[null,null,null,null,null,null,null,null,"",null,"",null,"",{"$f":"IF(M114>\"\",VLOOKUP(M114,#REF!,5,FALSE),\"\")","v":""}]
[null,null,null,null,null,null,null,null,"",null,"",null,"",{"$f":"IF(M115>\"\",VLOOKUP(M115,#REF!,5,FALSE),\"\")","v":""}]
[null,null,null,null,null,null,null,null,"",null,"",null,"",{"$f":"IF(M116>\"\",VLOOKUP(M116,#REF!,5,FALSE),\"\")","v":""}]
[null,null,null,null,null,null,null,null,"",null,"",null,"",{"$f":"IF(M117>\"\",VLOOKUP(M117,#REF!,5,FALSE),\"\")","v":""}]
[null,null,null,null,null,null,null,null,"",null,"",null,"",{"$f":"IF(M118>\"\",VLOOKUP(M118,#REF!,5,FALSE),\"\")","v":""}]
[null,null,null,null,null,null,null,null,"",null,"",null,"",{"$f":"IF(M119>\"\",VLOOKUP(M119,#REF!,5,FALSE),\"\")","v":""}]
[null,null,null,null,null,null,null,null,"",null,"",null,"",{"$f":"IF(M120>\"\",VLOOKUP(M120,#REF!,5,FALSE),\"\")","v":""}]
[null,null,null,null,null,null,null,null,"",null,"",null,"",{"$f":"IF(M121>\"\",VLOOKUP(M121,#REF!,5,FALSE),\"\")","v":""}]
[null,null,null,null,null,null,null,null,"",null,"",null,"",{"$f":"IF(M122>\"\",VLOOKUP(M122,#REF!,5,FALSE),\"\")","v":""}]
[null,null,null,null,null,null,null,null,"",null,"",null,"",{"$f":"IF(M123>\"\",VLOOKUP(M123,#REF!,5,FALSE),\"\")","v":""}]
[null,null,null,null,null,null,null,null,"",null,"",null,"",{"$f":"IF(M124>\"\",VLOOKUP(M124,#REF!,5,FALSE),\"\")","v":""}]
[null,null,null,null,null,null,null,null,"",null,"",null,"",{"$f":"IF(M125>\"\",VLOOKUP(M125,#REF!,5,FALSE),\"\")","v":""}]
[null,null,null,null,null,null,null,null,"",null,"",null,"",{"$f":"IF(M126>\"\",VLOOKUP(M126,#REF!,5,FALSE),\"\")","v":""}]
[null,null,null,null,null,null,null,null,"",null,"",null,"",{"$f":"IF(M127>\"\",VLOOKUP(M127,#REF!,5,FALSE),\"\")","v":""}]
[null,null,null,null,null,null,null,null,"",null,"",null,"",{"$f":"IF(M128>\"\",VLOOKUP(M128,#REF!,5,FALSE),\"\")","v":""}]
[null,null,null,null,null,null,null,null,"",null,"",null,"",{"$f":"IF(M129>\"\",VLOOKUP(M129,#REF!,5,FALSE),\"\")","v":""}]
[null,null,null,null,null,null,null,null,"",null,"",null,"",{"$f":"IF(M130>\"\",VLOOKUP(M130,#REF!,5,FALSE),\"\")","v":""}]
[null,null,null,null,null,null,null,null,"",null,"",null,"",{"$f":"IF(M131>\"\",VLOOKUP(M131,#REF!,5,FALSE),\"\")","v":""}]
[null,null,null,null,null,null,null,null,"",null,"",null,"",{"$f":"IF(M132>\"\",VLOOKUP(M132,#REF!,5,FALSE),\"\")","v":""}]
[null,null,null,null,null,null,null,null,"",null,"",null,"",{"$f":"IF(M133>\"\",VLOOKUP(M133,#REF!,5,FALSE),\"\")","v":""}]
[null,null,null,null,null,null,null,null,"",null,"",null,"",{"$f":"IF(M134>\"\",VLOOKUP(M134,#REF!,5,FALSE),\"\")","v":""}]
[null,null,null,null,null,null,null,null,"",null,"",null,"",{"$f":"IF(M135>\"\",VLOOKUP(M135,#REF!,5,FALSE),\"\")","v":""}]
[null,null,null,null,null,null,null,null,"",null,"",null,"",{"$f":"IF(M136>\"\",VLOOKUP(M136,#REF!,5,FALSE),\"\")","v":""}]
[null,null,null,null,null,null,null,null,"",null,"",null,"",{"$f":"IF(M137>\"\",VLOOKUP(M137,#REF!,5,FALSE),\"\")","v":""}]
[null,null,null,null,null,null,null,null,"",null,"",null,"",{"$f":"IF(M138>\"\",VLOOKUP(M138,#REF!,5,FALSE),\"\")","v":""}]
[null,null,null,null,null,null,null,null,"",null,"",null,"",{"$f":"IF(M139>\"\",VLOOKUP(M139,#REF!,5,FALSE),\"\")","v":""}]
[null,null,null,null,null,null,null,null,"",null,"",null,"",{"$f":"IF(M140>\"\",VLOOKUP(M140,#REF!,5,FALSE),\"\")","v":""}]
[null,null,null,null,null,null,null,null,"",null,"",null,"",{"$f":"IF(M141>\"\",VLOOKUP(M141,#REF!,5,FALSE),\"\")","v":""}]
[null,null,null,null,null,null,null,null,"",null,"",null,"",{"$f":"IF(M142>\"\",VLOOKUP(M142,#REF!,5,FALSE),\"\")","v":""}]
[null,null,null,null,null,null,null,null,"",null,"",null,"",{"$f":"IF(M143>\"\",VLOOKUP(M143,#REF!,5,FALSE),\"\")","v":""}]
[null,null,null,null,null,null,null,null,"",null,"",null,"",{"$f":"IF(M144>\"\",VLOOKUP(M144,#REF!,5,FALSE),\"\")","v":""}]
[null,null,null,null,null,null,null,null,"",null,"",null,"",{"$f":"IF(M145>\"\",VLOOKUP(M145,#REF!,5,FALSE),\"\")","v":""}]
[null,null,null,null,null,null,null,null,"",null,"",null,"",{"$f":"IF(M146>\"\",VLOOKUP(M146,#REF!,5,FALSE),\"\")","v":""}]
[null,null,null,null,null,null,null,null,"",null,"",null,"",{"$f":"IF(M147>\"\",VLOOKUP(M147,#REF!,5,FALSE),\"\")","v":""}]
[null,null,null,null,null,null,null,null,"",null,"",null,"",{"$f":"IF(M148>\"\",VLOOKUP(M148,#REF!,5,FALSE),\"\")","v":""}]
[null,null,null,null,null,null,null,null,"",null,"",null,"",{"$f":"IF(M149>\"\",VLOOKUP(M149,#REF!,5,FALSE),\"\")","v":""}]
[null,null,null,null,null,null,null,null,"",null,"",null,"",{"$f":"IF(M150>\"\",VLOOKUP(M150,#REF!,5,FALSE),\"\")","v":""}]
[null,null,null,null,null,null,null,null,"",null,"",null,"",{"$f":"IF(M151>\"\",VLOOKUP(M151,#REF!,5,FALSE),\"\")","v":""}]
[null,null,null,null,null,null,null,null,"",null,"",null,"",{"$f":"IF(M152>\"\",VLOOKUP(M152,#REF!,5,FALSE),\"\")","v":""}]
[null,null,null,null,null,null,null,null,"",null,"",null,"",{"$f":"IF(M153>\"\",VLOOKUP(M153,#REF!,5,FALSE),\"\")","v":""}]
[null,null,null,null,null,null,null,null,"",null,"",null,"",{"$f":"IF(M154>\"\",VLOOKUP(M154,#REF!,5,FALSE),\"\")","v":""}]
[null,null,null,null,null,null,null,null,"",null,"",null,"",{"$f":"IF(M155>\"\",VLOOKUP(M155,#REF!,5,FALSE),\"\")","v":""}]
[null,null,null,null,null,null,null,null,"",null,"",null,"",{"$f":"IF(M156>\"\",VLOOKUP(M156,#REF!,5,FALSE),\"\")","v":""}]
[null,null,null,null,null,null,null,null,"",null,"",null,"",{"$f":"IF(M157>\"\",VLOOKUP(M157,#REF!,5,FALSE),\"\")","v":""}]
[null,null,null,null,null,null,null,null,"",null,"",null,"",{"$f":"IF(M158>\"\",VLOOKUP(M158,#REF!,5,FALSE),\"\")","v":""}]
[null,null,null,null,null,null,null,null,"",null,"",null,"",{"$f":"IF(M159>\"\",VLOOKUP(M159,#REF!,5,FALSE),\"\")","v":""}]
[null,null,null,null,null,null,null,null,"",null,"",null,"",{"$f":"IF(M160>\"\",VLOOKUP(M160,#REF!,5,FALSE),\"\")","v":""}]
[null,null,null,null,null,null,null,null,"",null,"",null,"",{"$f":"IF(M161>\"\",VLOOKUP(M161,#REF!,5,FALSE),\"\")","v":""}]
[null,null,null,null,null,null,null,null,"",null,"",null,"",{"$f":"IF(M162>\"\",VLOOKUP(M162,#REF!,5,FALSE),\"\")","v":""}]
[null,null,null,null,null,null,null,null,"",null,"",null,"",{"$f":"IF(M163>\"\",VLOOKUP(M163,#REF!,5,FALSE),\"\")","v":""}]
[null,null,null,null,null,null,null,null,"",null,"",null,"",{"$f":"IF(M164>\"\",VLOOKUP(M164,#REF!,5,FALSE),\"\")","v":""}]
[null,null,null,null,null,null,null,null,"",null,"",null,"",{"$f":"IF(M165>\"\",VLOOKUP(M165,#REF!,5,FALSE),\"\")","v":""}]
[null,null,null,null,null,null,null,null,"",null,"",null,"",{"$f":"IF(M166>\"\",VLOOKUP(M166,#REF!,5,FALSE),\"\")","v":""}]
[null,null,null,null,null,null,null,null,"",null,"",null,"",{"$f":"IF(M167>\"\",VLOOKUP(M167,#REF!,5,FALSE),\"\")","v":""}]
[null,null,null,null,null,null,null,null,"",null,"",null,"",{"$f":"IF(M168>\"\",VLOOKUP(M168,#REF!,5,FALSE),\"\")","v":""}]
[null,null,null,null,null,null,null,null,"",null,"",null,"",{"$f":"IF(M169>\"\",VLOOKUP(M169,#REF!,5,FALSE),\"\")","v":""}]
[null,null,null,null,null,null,null,null,"",null,"",null,"",{"$f":"IF(M170>\"\",VLOOKUP(M170,#REF!,5,FALSE),\"\")","v":""}]
[null,null,null,null,null,null,null,null,"",null,"",null,"",{"$f":"IF(M171>\"\",VLOOKUP(M171,#REF!,5,FALSE),\"\")","v":""}]
[null,null,null,null,null,null,null,null,"",null,"",null,"",{"$f":"IF(M172>\"\",VLOOKUP(M172,#REF!,5,FALSE),\"\")","v":""}]
[null,null,null,null,null,null,null,null,"",null,"",null,"",{"$f":"IF(M173>\"\",VLOOKUP(M173,#REF!,5,FALSE),\"\")","v":""}]
[null,null,null,null,null,null,null,null,"",null,"",null,"",{"$f":"IF(M174>\"\",VLOOKUP(M174,#REF!,5,FALSE),\"\")","v":""}]
[null,null,null,null,null,null,null,null,"",null,"",null,"",{"$f":"IF(M175>\"\",VLOOKUP(M175,#REF!,5,FALSE),\"\")","v":""}]
[null,null,null,null,null,null,null,null,"",null,"",null,"",{"$f":"IF(M176>\"\",VLOOKUP(M176,#REF!,5,FALSE),\"\")","v":""}]
[null,null,null,null,null,null,null,null,"",null,"",null,"",{"$f":"IF(M177>\"\",VLOOKUP(M177,#REF!,5,FALSE),\"\")","v":""}]
[null,null,null,null,null,null,null,null,"",null,"",null,"",{"$f":"IF(M178>\"\",VLOOKUP(M178,#REF!,5,FALSE),\"\")","v":""}]
[null,null,null,null,null,null,null,null,"",null,"",null,"",{"$f":"IF(M179>\"\",VLOOKUP(M179,#REF!,5,FALSE),\"\")","v":""}]
[null,null,null,null,null,null,null,null,"",null,"",null,"",{"$f":"IF(M180>\"\",VLOOKUP(M180,#REF!,5,FALSE),\"\")","v":""}]
[null,null,null,null,null,null,null,null,"",null,"",null,"",{"$f":"IF(M181>\"\",VLOOKUP(M181,#REF!,5,FALSE),\"\")","v":""}]
[null,null,null,null,null,null,null,null,"",null,"",null,"",{"$f":"IF(M182>\"\",VLOOKUP(M182,#REF!,5,FALSE),\"\")","v":""}]
[null,null,null,null,null,null,null,null,"",null,"",null,"",{"$f":"IF(M183>\"\",VLOOKUP(M183,#REF!,5,FALSE),\"\")","v":""}]
[null,null,null,null,null,null,null,null,"",null,"",null,"",{"$f":"IF(M184>\"\",VLOOKUP(M184,#REF!,5,FALSE),\"\")","v":""}]
[null,null,null,null,null,null,null,null,"",null,"",null,"",{"$f":"IF(M185>\"\",VLOOKUP(M185,#REF!,5,FALSE),\"\")","v":""}]
[null,null,null,null,null,null,null,null,"",null,"",null,"",{"$f":"IF(M186>\"\",VLOOKUP(M186,#REF!,5,FALSE),\"\")","v":""}]
[null,null,null,null,null,null,null,null,"",null,"",null,"",{"$f":"IF(M187>\"\",VLOOKUP(M187,#REF!,5,FALSE),\"\")","v":""}]
[null,null,null,null,null,null,null,null,"",null,"",null,"",{"$f":"IF(M188>\"\",VLOOKUP(M188,#REF!,5,FALSE),\"\")","v":""}]
[null,null,null,null,null,null,null,null,"",null,"",null,"",{"$f":"IF(M189>\"\",VLOOKUP(M189,#REF!,5,FALSE),\"\")","v":""}]
[null,null,null,null,null,null,null,null,"",null,"",null,"",{"$f":"IF(M190>\"\",VLOOKUP(M190,#REF!,5,FALSE),\"\")","v":""}]
[null,null,null,null,null,null,null,null,"",null,"",null,"",{"$f":"IF(M191>\"\",VLOOKUP(M191,#REF!,5,FALSE),\"\")","v":""}]
[null,null,null,null,null,null,null,null,"",null,"",null,"",{"$f":"IF(M192>\"\",VLOOKUP(M192,#REF!,5,FALSE),\"\")","v":""}]
[null,null,null,null,null,null,null,null,"",null,"",null,"",{"$f":"IF(M193>\"\",VLOOKUP(M193,#REF!,5,FALSE),\"\")","v":""}]
[null,null,null,null,null,null,null,null,"",null,"",null,"",{"$f":"IF(M194>\"\",VLOOKUP(M194,#REF!,5,FALSE),\"\")","v":""}]
[null,null,null,null,null,null,null,null,"",null,"",null,"",{"$f":"IF(M195>\"\",VLOOKUP(M195,#REF!,5,FALSE),\"\")","v":""}]
[null,null,null,null,null,null,null,null,"",null,"",null,"",{"$f":"IF(M196>\"\",VLOOKUP(M196,#REF!,5,FALSE),\"\")","v":""}]
[null,null,null,null,null,null,null,null,"",null,"",null,"",{"$f":"IF(M197>\"\",VLOOKUP(M197,#REF!,5,FALSE),\"\")","v":""}]
[null,null,null,null,null,null,null,null,"",null,"",null,"",{"$f":"IF(M198>\"\",VLOOKUP(M198,#REF!,5,FALSE),\"\")","v":""}]
[null,null,null,null,null,null,null,null,"",null,"",null,"",{"$f":"IF(M199>\"\",VLOOKUP(M199,#REF!,5,FALSE),\"\")","v":""}]
[null,null,null,null,null,null,null,null,"",null,"",null,"",{"$f":"IF(M200>\"\",VLOOKUP(M200,#REF!,5,FALSE),\"\")","v":""}]

{"sheet":"Accueil","index":1,"n_rows":0,"n_cols":0,"rows_kept":0,"cut":false,"hidden":false,"merged":[]}